fUSD/lending_fUSD_20251220
["ID","MTS","AMOUNT","RATE_DAILY","PERIOD"]
[399261221,1766214644256,-344.17176914,0.00016164,2]
[399261222,1766214644266,-500.0,0.00016164,2]
[399261223,1766214644276,-519.0,0.00016164,2]
[399261224,1766214644285,-153.22066729,0.00016164,2]
[399261225,1766214644294,-150.0,0.00016164,2]
[399261226,1766214644304,-1104.0,0.00016164,2]
[399261227,1766214644313,-150.0,0.00016164,2]
[399261228,1766214644322,-500.0,0.00016164,2]
[399261229,1766214644332,-500.0,0.00016164,2]
[399261230,1766214644341,-500.0,0.00016164,2]
[399261231,1766214644351,-500.0,0.00016164,2]
[399261232,1766214644361,-866.0,0.00016164,2]
[399261233,1766214644370,-500.0,0.00016164,2]
[399261234,1766214644381,-42576.5865469,0.00016188,2]
[399261235,1766214644390,-33923.89774458,0.00016188,2]
[399261236,1766214644400,-166.66,0.0001621,2]
[399261237,1766214644409,-515.04736606,0.00016275,2]
[399261238,1766214644419,-500.0,0.000163,2]
[399261239,1766214644431,-500.59670517,0.000163,2]
[399261240,1766214644442,-162.24077786,0.000163,2]
[399261241,1766214644451,-500.0,0.000163,2]
[399261242,1766214644462,-500.19600128,0.000163,2]
[399261243,1766214644471,-500.0,0.000163,2]
[399261244,1766214644482,-500.0,0.000163,2]
[399261245,1766214644492,-500.5692733,0.000163,2]
[399261246,1766214644501,-500.0,0.000163,2]
[399261247,1766214644511,-555.87900727,0.000163,2]
[399261248,1766214644521,-500.0,0.000163,2]
[399261249,1766214644531,-162.03877535,0.000163,2]
[399261250,1766214644542,-500.0,0.000163,2]
[399261251,1766214644551,-500.0,0.000163,2]
[399261252,1766214644561,-500.0,0.000163,2]
[399261253,1766214644572,-330.6916765,0.000163,2]
[399261254,1766214644583,-500.0,0.000163,2]
[399261255,1766214644592,-570.20028222,0.000163,2]
[399261256,1766214644602,-500.37407939,0.000163,2]
[399261257,1766214644611,-500.0,0.000163,2]
[399261258,1766214644620,-500.21661931,0.000163,2]
[399261259,1766214644629,-333.44713486,0.000163,2]
[399261260,1766214644638,-590.13268338,0.000163,2]
[399261261,1766214644649,-500.0,0.000163,2]
[399261262,1766214644659,-500.29716194,0.000163,2]
[399261263,1766214644668,-500.0,0.000163,2]
[399261264,1766214644678,-500.0,0.000163,2]
[399261265,1766214644691,-500.48687625,0.000163,2]
[399261266,1766214644703,-500.0,0.000163,2]
[399261267,1766214644713,-452.09330567,0.000163,2]
[399261268,1766214644723,-334.5464899,0.000163,2]
[399261269,1766214644734,-518.77690272,0.000163,2]
[399261270,1766214644743,-500.0,0.000163,2]
[399261271,1766214644753,-500.0,0.000163,2]
[399261272,1766214644762,-500.0,0.000163,2]
[399261273,1766214644771,-162.35722153,0.000163,2]
[399261274,1766214644784,-500.0,0.000163,2]
[399261275,1766214644793,-500.33069287,0.000163,2]
[399261276,1766214644802,-500.0,0.000163,2]
[399261277,1766214644812,-177.2862913,0.000163,2]
[399261278,1766214644821,-529.96646376,0.000163,2]
[399261279,1766214644831,-500.0,0.000163,2]
[399261280,1766214644844,-500.0,0.000163,2]
[399261281,1766214644854,-220.27121476,0.000163,2]
[399261282,1766214644863,-161.07996631,0.000163,2]
[399261283,1766214644872,-523.00588269,0.000163,2]
[399261284,1766214644881,-543.08632529,0.000163,2]
[399261285,1766214644891,-500.0,0.000163,2]
[399261286,1766214644900,-500.0,0.000163,2]
[399261287,1766214644909,-500.0,0.000163,2]
[399261288,1766214644918,-500.0,0.000163,2]
[399261289,1766214644976,-500.0,0.000163,2]
[399261290,1766214644987,-500.0,0.000163,2]
[399261291,1766214644999,-166.91561833,0.000163,2]
[399261292,1766214645008,-168.56959317,0.000163,2]
[399261293,1766214645018,-500.0,0.000163,2]
[399261294,1766214645028,-500.0,0.000163,2]
[399261295,1766214645037,-344.64845159,0.000163,2]
[399261296,1766214645048,-500.0,0.000163,2]
[399261297,1766214645057,-500.0,0.000163,2]
[399261298,1766214645066,-500.30081252,0.000163,2]
[399261299,1766214645076,-168.09419939,0.000163,2]
[399261300,1766214645085,-500.5161197,0.000163,2]
[399261301,1766214645096,-500.0,0.000163,2]
[399261302,1766214645107,-500.4308882,0.000163,2]
[399261303,1766214645116,-468.55909228,0.000163,2]
[399261304,1766214645126,-500.0,0.000163,2]
[399261305,1766214645136,-426.51211002,0.000163,2]
[399261306,1766214645145,-500.34670783,0.000163,2]
[399261307,1766214645155,-500.34860131,0.000163,2]
[399261308,1766214645164,-500.0,0.000163,2]
[399261309,1766214645172,-500.30832876,0.000163,2]
[399261310,1766214645181,-516.37835686,0.000163,2]
[399261311,1766214645190,-500.0,0.000163,2]
[399261312,1766214645199,-159.43095819,0.000163,2]
[399261313,1766214645208,-500.0,0.000163,2]
[399261314,1766214645218,-500.0,0.000163,2]
[399261315,1766214645227,-500.0,0.000163,2]
[399261316,1766214645236,-500.45922425,0.000163,2]
[399261317,1766214645245,-539.0,0.00016301,2]
[399261318,1766214645255,-441.0,0.00016301,2]
[399261319,1766214645264,-230.7089659,0.00016301,2]
[399261320,1766214645274,-500.0,0.00016301,2]
[399261321,1766214645283,-500.0,0.00016301,2]
[399261322,1766214645293,-500.0,0.00016301,2]
[399261323,1766214645302,-500.0,0.00016301,2]
[399261324,1766214645311,-519.0,0.00016301,2]
[399261325,1766214645320,-150.0,0.00016301,2]
[399261326,1766214645331,-1104.0,0.00016301,2]
[399261327,1766214645340,-150.0,0.00016301,2]
[399261328,1766214645350,-500.0,0.00016301,2]
[399261329,1766214645360,-500.0,0.00016301,2]
[399261330,1766214645369,-866.0,0.00016301,2]
[399261331,1766214645378,-500.0,0.00016301,2]
[399261332,1766214645387,-150.0,0.00016307,2]
[399261333,1766214645396,-10000.0,0.00016338,2]
[399261334,1766214645405,-228.0,0.000164,2]
[399261335,1766214645414,-319.0,0.000164,2]
[399261336,1766214645424,-182.0,0.000164,2]
[399261337,1766214645434,-183.63284637,0.000164,2]
[399261338,1766214645444,-760.18,0.00016437,2]
[399261339,1766214645453,-539.0,0.00016438,2]
[399261340,1766214645462,-441.0,0.00016438,2]
[399261341,1766214645471,-151.31035432,0.00016438,2]
[399261342,1766214645480,-500.0,0.00016438,2]
[399261343,1766214645489,-500.0,0.00016438,2]
[399261344,1766214645498,-500.0,0.00016438,2]
[399261345,1766214645507,-519.0,0.00016438,2]
[399261346,1766214645516,-250.0,0.00016438,2]
[399261347,1766214645525,-1104.0,0.00016438,2]
[399261348,1766214645535,-250.0,0.00016438,2]
[399261349,1766214645544,-234.32985892,0.00016438,2]
[399261350,1766214645553,-500.0,0.00016438,2]
[399261351,1766214645562,-866.0,0.00016438,2]
[399261352,1766214645571,-500.0,0.00016438,2]
[399261353,1766214645580,-500.0,0.00016438,2]
[399261354,1766214645589,-500.0,0.00016438,2]
[399261355,1766214645598,-500.0,0.00016438,2]
[399261356,1766214645607,-500.0,0.00016438,2]
[399261357,1766214645617,-500.0,0.00016438,2]
[399261358,1766214645625,-500.0,0.00016438,2]
[399261359,1766214645635,-500.0,0.00016438,2]
[399261360,1766214645644,-500.0,0.00016438,2]
[399261361,1766214645653,-500.0,0.00016438,2]
[399261362,1766214645663,-500.0,0.00016438,2]
[399261363,1766214645673,-500.0,0.00016438,2]
[399261364,1766214645682,-500.0,0.00016438,2]
[399261365,1766214645692,-500.0,0.00016438,2]
[399261366,1766214645701,-500.0,0.00016438,2]
[399261367,1766214645710,-500.0,0.00016438,2]
[399261368,1766214645719,-500.0,0.00016438,2]
[399261369,1766214645729,-500.0,0.00016438,2]
[399261370,1766214645738,-500.0,0.00016438,2]
[399261371,1766214645747,-500.0,0.00016438,2]
[399261372,1766214645757,-500.0,0.00016438,2]
[399261373,1766214645765,-500.0,0.00016438,2]
[399261374,1766214645778,-500.0,0.00016438,2]
[399261375,1766214645789,-500.0,0.00016438,2]
[399261376,1766214645801,-500.0,0.00016438,2]
[399261377,1766214645812,-500.0,0.00016438,2]
[399261378,1766214645823,-500.0,0.00016438,2]
[399261379,1766214645832,-500.0,0.00016438,2]
[399261380,1766214645841,-500.0,0.00016438,2]
[399261381,1766214645852,-500.0,0.00016438,2]
[399261382,1766214645862,-500.0,0.00016438,2]
[399261383,1766214645871,-500.0,0.00016438,2]
[399261384,1766214645882,-500.0,0.00016438,2]
[399261385,1766214645891,-500.0,0.00016438,2]
[399261386,1766214645900,-500.0,0.00016438,2]
[399261387,1766214645909,-500.0,0.00016438,2]
[399261388,1766214645918,-500.0,0.00016438,2]
[399261389,1766214645927,-500.0,0.00016438,2]
[399261390,1766214645936,-500.0,0.00016438,2]
[399261391,1766214645944,-500.0,0.00016438,2]
[399261392,1766214645953,-500.0,0.00016438,2]
[399261393,1766214645962,-500.0,0.00016438,2]
[399261394,1766214645972,-500.0,0.00016438,2]
[399261395,1766214645981,-500.0,0.00016438,2]
[399261396,1766214645990,-500.0,0.00016438,2]
[399261397,1766214645999,-500.0,0.00016438,2]
[399261398,1766214646008,-500.0,0.00016438,2]
[399261399,1766214646017,-313.93225803,0.00016438,2]
[399261400,1766214646026,-500.0,0.00016438,2]
[399261401,1766214646034,-500.0,0.00016438,2]
[399261402,1766214646043,-500.0,0.00016438,2]
[399261403,1766214646053,-500.0,0.00016438,2]
[399261404,1766214646062,-500.0,0.00016438,2]
[399261405,1766214646072,-500.0,0.00016438,2]
[399261406,1766214646081,-500.0,0.00016438,2]
[399261407,1766214646091,-500.0,0.00016438,2]
[399261408,1766214646100,-500.0,0.00016438,2]
[399261409,1766214646110,-500.0,0.00016438,2]
[399261410,1766214646119,-500.0,0.00016438,2]
[399261411,1766214646129,-500.0,0.00016438,2]
[399261412,1766214646138,-500.0,0.00016438,2]
[399261413,1766214646147,-500.0,0.00016438,2]
[399261414,1766214646156,-500.0,0.00016438,2]
[399261415,1766214646166,-500.0,0.00016438,2]
[399261416,1766214646176,-500.0,0.00016438,2]
[399261417,1766214646185,-500.0,0.00016438,2]
[399261418,1766214646195,-500.0,0.00016438,2]
[399261419,1766214646204,-500.0,0.00016438,2]
[399261420,1766214646214,-500.0,0.00016438,2]
[399261421,1766214646233,-500.0,0.00016438,2]
[399261422,1766214646242,-500.0,0.00016438,2]
[399261423,1766214646251,-500.0,0.00016438,2]
[399261424,1766214646261,-500.0,0.00016438,2]
[399261425,1766214646270,-500.0,0.00016438,2]
[399261426,1766214646279,-500.0,0.00016438,2]
[399261427,1766214646288,-500.0,0.00016438,2]
[399261428,1766214646298,-500.0,0.00016438,2]
[399261429,1766214646307,-500.0,0.00016438,2]
[399261430,1766214646317,-500.0,0.00016438,2]
[399261431,1766214646326,-500.0,0.00016438,2]
[399261432,1766214646336,-500.0,0.00016438,2]
[399261433,1766214646346,-500.0,0.00016438,2]
[399261434,1766214646355,-500.0,0.00016438,2]
[399261435,1766214646363,-500.0,0.00016438,2]
[399261436,1766214646373,-549.99999999,0.00016438,2]
[399261437,1766214646382,-500.0,0.00016438,2]
[399261438,1766214646391,-500.0,0.00016438,2]
[399261439,1766214646400,-500.0,0.00016438,2]
[399261440,1766214646409,-500.0,0.00016438,2]
[399261441,1766214646418,-500.0,0.00016438,2]
[399261442,1766214646427,-3000.71,0.00016438,2]
[399261443,1766214646435,-225.86,0.00016438,2]
[399261444,1766214646444,-800.0,0.00016438,2]
[399261445,1766214646453,-164.44,0.0001644,2]
[399261446,1766214646463,-164.44,0.0001644,2]
[399261447,1766214646472,-310.01,0.00016463,2]
[399261448,1766214646482,-3000.0,0.00016512,2]
[399261449,1766214646490,-3109.34995974,0.00016512,2]
[399261450,1766214646500,-539.0,0.00016575,2]
[399261451,1766214646509,-441.0,0.00016575,2]
[399261452,1766214646519,-500.0,0.00016575,2]
[399261453,1766214646527,-500.0,0.00016575,2]
[399261454,1766214646536,-500.0,0.00016575,2]
[399261455,1766214646545,-519.0,0.00016575,2]
[399261456,1766214646554,-1104.0,0.00016575,2]
[399261457,1766214646563,-500.0,0.00016575,2]
[399261458,1766214646573,-866.0,0.00016575,2]
[399261459,1766214646582,-500.0,0.00016575,2]
[399261460,1766214646591,-500.0,0.00016575,2]
[399261461,1766214646601,-500.0,0.00016614,2]
[399261462,1766214646610,-200.0,0.00016614,2]
[399261463,1766214646618,-200.0,0.00016614,2]
[399261464,1766214646627,-150.0,0.00016647,2]
[399261465,1766214646637,-539.0,0.00016712,2]
[399261466,1766214646646,-441.0,0.00016712,2]
[399261467,1766214646655,-500.0,0.00016712,2]
[399261468,1766214646664,-500.0,0.00016712,2]
[399261469,1766214646674,-500.0,0.00016712,2]
[399261470,1766214646683,-519.0,0.00016712,2]
[399261471,1766214646691,-1104.0,0.00016712,2]
[399261472,1766214646701,-500.0,0.00016712,2]
[399261473,1766214646710,-866.0,0.00016712,2]
[399261474,1766214646719,-500.0,0.00016712,2]
[399261475,1766214646728,-500.0,0.00016712,2]
[399261476,1766214646737,-167.75,0.00016712,2]
[399261477,1766214646746,-500.0,0.00016726,2]
[399261478,1766214646755,-225.40367031,0.00016792,2]
[399261479,1766214646764,-846.45332019,0.0001683,2]
[399261480,1766214646774,-1001.04801864,0.00016848,2]
[399261481,1766214646786,-221.90485079,0.00016848,2]
[399261482,1766214646795,-1000.0,0.00016848,2]
[399261483,1766214646804,-1001.0881382,0.00016848,2]
[399261484,1766214646813,-1001.13256122,0.00016848,2]
[399261485,1766214646822,-1001.04078122,0.00016848,2]
[399261486,1766214646831,-1000.87754816,0.00016848,2]
[399261487,1766214646840,-1000.0,0.00016848,2]
[399261488,1766214646848,-1001.39291005,0.00016848,2]
[399261489,1766214646857,-1001.0574546,0.00016848,2]
[399261490,1766214646866,-179.47316237,0.00016848,2]
[399261491,1766214646876,-1000.87355102,0.00016848,2]
[399261492,1766214646884,-500.65137842,0.00016848,2]
[399261493,1766214646893,-1001.01249642,0.00016848,2]
[399261494,1766214646903,-1001.94292641,0.00016848,2]
[399261495,1766214646912,-1000.0,0.00016848,2]
[399261496,1766214646921,-1001.02020729,0.00016848,2]
[399261497,1766214646930,-1000.76703223,0.00016848,2]
[399261498,1766214646939,-1001.19540644,0.00016848,2]
[399261499,1766214646947,-1000.0,0.00016848,2]
[399261500,1766214646956,-500.58632088,0.00016848,2]
[399261501,1766214646965,-1000.0,0.00016848,2]
[399261502,1766214646974,-1000.0,0.00016848,2]
[399261503,1766214646983,-1000.0,0.00016848,2]
[399261504,1766214646992,-1000.0,0.00016848,2]
[399261505,1766214647001,-1000.83354161,0.00016848,2]
[399261506,1766214647010,-1000.0,0.00016848,2]
[399261507,1766214647019,-1000.0,0.00016848,2]
[399261508,1766214647027,-998.88830841,0.00016848,2]
[399261509,1766214647037,-1000.0,0.00016848,2]
[399261510,1766214647046,-1000.91698308,0.00016848,2]
[399261511,1766214647055,-1001.31913615,0.00016848,2]
[399261512,1766214647064,-1002.26047729,0.00016848,2]
[399261513,1766214647075,-1000.0,0.00016848,2]
[399261514,1766214647084,-1000.96314567,0.00016848,2]
[399261515,1766214647094,-501.11789279,0.00016848,2]
[399261516,1766214647103,-1000.9465121,0.00016848,2]
[399261517,1766214647113,-1000.866265,0.00016848,2]
[399261518,1766214647122,-501.13881872,0.00016848,2]
[399261519,1766214647132,-539.0,0.00016849,2]
[399261520,1766214647141,-441.0,0.00016849,2]
[399261521,1766214647150,-500.0,0.00016849,2]
[399261522,1766214647159,-500.0,0.00016849,2]
[399261523,1766214647168,-500.0,0.00016849,2]
[399261524,1766214647177,-519.0,0.00016849,2]
[399261525,1766214647187,-1104.0,0.00016849,2]
[399261526,1766214647197,-500.0,0.00016849,2]
[399261527,1766214647217,-866.0,0.00016849,2]
[399261528,1766214647226,-500.0,0.00016849,2]
[399261529,1766214647235,-500.0,0.00016849,2]
[399261530,1766214647244,-528.93385388,0.00016863,2]
[399261531,1766214647254,-200.0,0.00016864,2]
[399261532,1766214647263,-42576.5865469,0.000169,2]
[399261533,1766214647273,-340.00139221,0.000169,2]
[399261534,1766214647288,-181.47081458,0.000169,2]
[399261535,1766214647307,-150.34870908,0.000169,2]
[399261536,1766214647316,-1790.84096348,0.000169,2]
[399261537,1766214647326,-33923.89774458,0.000169,2]
[399261538,1766214647335,-500.0,0.00016972,2]
[399261539,1766214647346,-150.10981544,0.00016973,2]
[399261540,1766214647356,-163.39899626,0.00016973,2]
[399261541,1766214647366,-150.09235231,0.00016973,2]
[399261542,1766214647377,-150.0,0.00016973,2]
[399261543,1766214647390,-150.0,0.00016973,2]
[399261544,1766214647399,-760.18,0.00016975,2]
[399261545,1766214647408,-760.18,0.00016975,2]
[399261546,1766214647417,-502.72873528,0.00016983,2]
[399261547,1766214647426,-500.0,0.00016984,2]
[399261548,1766214647435,-500.0,0.00016984,2]
[399261549,1766214647445,-500.0,0.00016984,2]
[399261550,1766214647454,-3260.7782735,0.00016985,2]
[399261551,1766214647463,-31812.4243914,0.00016985,2]
[399261552,1766214647471,-500.0,0.00016985,2]
[399261553,1766214647480,-8518.4340925,0.00016985,2]
[399261554,1766214647490,-539.0,0.00016986,2]
[399261555,1766214647499,-441.0,0.00016986,2]
[399261556,1766214647508,-237.68541436,0.00016986,2]
[399261557,1766214647517,-500.0,0.00016986,2]
[399261558,1766214647526,-500.0,0.00016986,2]
[399261559,1766214647535,-519.0,0.00016986,2]
[399261560,1766214647543,-1104.0,0.00016986,2]
[399261561,1766214647553,-500.0,0.00016986,2]
[399261562,1766214647562,-866.0,0.00016986,2]
[399261563,1766214647571,-500.0,0.00016986,2]
[399261564,1766214647580,-500.0,0.00016986,2]
[399261565,1766214647589,-164.76564826,0.00016986,2]
[399261566,1766214647598,-1647.70919262,0.0001699,2]
[399261567,1766214647607,-1647.70919262,0.0001699,2]
[399261568,1766214647616,-151.0,0.00016997,2]
[399261569,1766214647625,-151.0,0.00016997,2]
[399261570,1766214647635,-151.0,0.00016997,2]
[399261571,1766214647644,-760.18,0.00016998,2]
[399261572,1766214647653,-1500.0,0.00016998,2]
[399261573,1766214647662,-1500.0,0.00016998,2]
[399261574,1766214647671,-1527.47643038,0.00016998,2]
[399261575,1766214647680,-760.18,0.00016999,2]
[399261576,1766214647689,-760.18,0.00016999,2]
[399261577,1766214647698,-760.18,0.00016999,2]
[399261578,1766214647707,-760.18,0.00016999,2]
[399261579,1766214647716,-760.18,0.00016999,2]
[399261580,1766214647726,-760.18,0.00016999,2]
[399261581,1766214647735,-760.18,0.00016999,2]
[399261582,1766214647744,-760.18,0.00016999,2]
[399261583,1766214647753,-760.18,0.00016999,2]
[399261584,1766214647761,-760.35443283,0.00016999,2]
[399261585,1766214647770,-469.51043734,0.00016999,2]
[399261586,1766214647781,-500.0,0.00016999,2]
[399261587,1766214647790,-500.0,0.00016999,2]
[399261588,1766214647800,-500.0,0.00016999,2]
[399261589,1766214647809,-500.0,0.00016999,2]
[399261590,1766214647818,-632.65,0.00016999,2]
[399261591,1766214647827,-500.0,0.00016999,2]
[399261592,1766214647837,-500.0,0.00016999,2]
[399261593,1766214647846,-531.25264543,0.00016999,2]
[399261594,1766214647856,-308.45911544,0.00016999,2]
[399261595,1766214647865,-500.0,0.00016999,2]
[399261596,1766214647875,-500.0,0.00016999,2]
[399261597,1766214647885,-500.0,0.00016999,2]
[399261598,1766214647895,-500.0,0.00016999,2]
[399261599,1766214647905,-500.0,0.00016999,2]
[399261600,1766214647914,-500.0,0.00016999,2]
[399261601,1766214647923,-592.36853989,0.00016999,2]
[399261602,1766214647933,-4357481.74892326,0.00017,2]
[399261603,1766214647942,-156541.94068085,0.00017,2]
[399261604,1766214648259,-402.06888544,0.00012087,2]
[399261605,1766214648268,-1423.79808238,0.00017,2]
[399261606,1766214648280,-871.29316464,0.00017,2]
[399261607,1766214648356,-150.0,0.00014591,2]
[399261608,1766214648366,-1151.18406247,0.00017,2]
[399261609,1766214648380,-837.24382625,0.00017,2]
[399261610,1766214648590,-118869.02869893,0.00017,2]
[399261611,1766214654147,500.0,0.00010587,2]
[399261612,1766214654222,630.7134986,0.00010587,2]
[399261620,1766214687159,500.0,0.0001059,2]
[399261621,1766214687227,500.0,0.0001059,2]
[399261622,1766214709457,297.0,0.00010575,2]
[399261623,1766214713648,500.0,0.0001059,2]
[399261624,1766214713704,500.0,0.0001059,2]
[399261625,1766214713759,217.42319122,0.0001059,2]
[399261626,1766214713819,217.72413288,0.0001059,2]
[399261627,1766214722383,500.0,0.0001059,2]
[399261628,1766214722443,607.83513311,0.0001059,2]
[399261629,1766214722496,500.0,0.0001059,2]
[399261630,1766214722558,500.0,0.0001059,2]
[399261631,1766214722614,500.0,0.0001059,2]
[399261632,1766214722668,500.0,0.0001059,2]
[399261633,1766214725986,500.0,0.0001059,2]
[399261634,1766214732871,500.0,0.0001059,2]
[399261661,1766215076385,4409.47,0.00022,30]
[399261718,1766215489937,150.8,6.558e-05,2]
[399261734,1766215831948,-172.2,0.00011402,2]
[399261736,1766215831958,-195.0,0.00011419,2]
[399261738,1766215831967,-195.0,0.00011437,2]
[399261739,1766215831976,-250.0,0.00011473,2]
[399261740,1766215831986,-195.0,0.00011577,2]
[399261741,1766215831999,-250.0,0.00011781,2]
[399261742,1766215832008,-306.41389283,0.000125,2]
[399261743,1766215832017,-172.2,0.00012542,2]
[399261744,1766215832027,-250.0,0.00012542,2]
[399261745,1766215832036,-195.0,0.00012542,2]
[399261746,1766215832045,-195.0,0.00012542,2]
[399261747,1766215832055,-2210.97,0.00012791,2]
[399261748,1766215832064,-300.0,0.00012939,2]
[399261749,1766215832074,-1200.0,0.00012939,2]
[399261750,1766215832094,-15523.62,0.0001294,2]
[399261751,1766215832103,-237.94166923,0.00012989,2]
[399261752,1766215832112,-525.2529658,0.00012989,2]
[399261753,1766215832121,-238.64636521,0.00012989,2]
[399261754,1766215832131,-500.0,0.00012989,2]
[399261755,1766215832140,-500.0,0.00012989,2]
[399261756,1766215832149,-286.89023959,0.00012989,2]
[399261757,1766215832159,-230.22359054,0.00012989,2]
[399261758,1766215832168,-500.0,0.00012989,2]
[399261759,1766215832177,-500.0,0.00012989,2]
[399261760,1766215832185,-441.48635329,0.00012989,2]
[399261761,1766215832193,-500.0,0.00012989,2]
[399261762,1766215832201,-500.0,0.00012989,2]
[399261763,1766215832210,-589.66939619,0.00012989,2]
[399261764,1766215832219,-580.43097571,0.00012989,2]
[399261765,1766215832228,-500.0,0.00012989,2]
[399261766,1766215832238,-500.0,0.00012989,2]
[399261767,1766215832247,-500.0,0.00012989,2]
[399261768,1766215832257,-114337.33661584,0.0001299,2]
[399261769,1766215832267,-217.44841614,0.00013064,2]
[399261770,1766215832285,-4811.0,0.00013112,2]
[399261771,1766215832297,-828.0,0.0001325,2]
[399261772,1766215832307,-1000.0,0.000135,2]
[399261773,1766215832317,-789.0,0.00013508,2]
[399261774,1766215832327,-3259.12052189,0.00013582,2]
[399261775,1766215832336,-3240.0,0.00013644,2]
[399261776,1766215832346,-1289.20251846,0.00013654,2]
[399261777,1766215832355,-35141.8135,0.00013673,2]
[399261778,1766215832364,-244.51516293,0.00013673,2]
[399261779,1766215832373,-172.2,0.00013682,2]
[399261780,1766215832383,-9999.99,0.00013682,2]
[399261781,1766215832392,-9999.99,0.00013682,2]
[399261782,1766215832402,-150.99,0.00013682,2]
[399261783,1766215832411,-9999.99,0.00013682,2]
[399261784,1766215832421,-299.99,0.00013682,2]
[399261785,1766215832430,-4999.99,0.00013682,2]
[399261786,1766215832440,-499.99,0.00013682,2]
[399261787,1766215832449,-9999.99,0.00013682,2]
[399261788,1766215832459,-9999.99,0.00013682,2]
[399261789,1766215832468,-999.99,0.00013682,2]
[399261790,1766215832478,-166.66,0.00013699,2]
[399261791,1766215832489,-445.92,0.00013699,2]
[399261792,1766215832498,-539.72117841,0.00013699,2]
[399261793,1766215832507,-500.0,0.00013699,2]
[399261794,1766215832516,-555.5252472,0.00013699,2]
[399261795,1766215832526,-4238.97124719,0.00013736,2]
[399261796,1766215832535,-78105.21,0.00013754,2]
[399261797,1766215832545,-150.99,0.00013754,2]
[399261798,1766215832554,-3507.74731307,0.00013754,2]
[399261799,1766215832566,-297.67268693,0.00013754,2]
[399261800,1766215832575,-150.81,0.00013772,2]
[399261801,1766215832584,-150.29,0.00013772,2]
[399261802,1766215832594,-174.74495914,0.00013773,2]
[399261803,1766215832604,-235.41291364,0.00013773,2]
[399261804,1766215832614,-224.04773923,0.00013773,2]
[399261805,1766215832625,-500.0,0.00013773,2]
[399261806,1766215832638,-196.73080881,0.00013773,2]
[399261807,1766215832648,-340.98988946,0.00013773,2]
[399261808,1766215832659,-159.16955503,0.00013773,2]
[399261809,1766215832669,-500.0,0.00013773,2]
[399261810,1766215832679,-500.0,0.00013773,2]
[399261811,1766215832688,-500.0,0.00013773,2]
[399261812,1766215832697,-500.0,0.00013773,2]
[399261813,1766215832707,-152.32,0.00013773,2]
[399261814,1766215832716,-151.25,0.00013773,2]
[399261815,1766215832726,-152.37,0.00013773,2]
[399261816,1766215832735,-150.82,0.00013773,2]
[399261817,1766215832744,-152.82,0.00013773,2]
[399261818,1766215832754,-151.03,0.00013773,2]
[399261819,1766215832764,-150.66,0.00013773,2]
[399261820,1766215832774,-151.14,0.00013773,2]
[399261821,1766215832783,-151.7,0.00013773,2]
[399261822,1766215832801,-150.73,0.00013773,2]
[399261823,1766215832813,-150.24,0.00013773,2]
[399261824,1766215832822,-151.24,0.00013773,2]
[399261825,1766215832832,-150.53,0.00013773,2]
[399261826,1766215832842,-152.44,0.00013773,2]